[Event "Indian Rapid Championship 2023-24"]
[Site "Nashik"]
[Date "2024.03.04"]
[Round "4.10"]
[White "Mitrabha, Guha"]
[Black "Aradhya, Garg"]
[Result "1-0"]
[ECO "A13"]
[WhiteElo "2526"]
[BlackElo "2385"]
[Annotator "TA"]
[PlyCount "129"]
[EventDate "2024.03.02"]
[EventType "swiss"]
[EventCountry "IND"]
[SourceTitle "playchess.com"]
[Source "ChessBase"]
[SourceQuality "1"]
[TimeControl "900+10"]

{[%evp 36,129,-39,-31,0,0,0,-10,0,0,-5,-4,0,-6,0,0,0,0,0,0,14,29,31,14,66,66,52,45,53,47,81,18,21,7,14,7,16,7,42,8,137,132,173,60,60,0,0,0,0,0,0,0,0,0,0,0,0,0,0,0,0,0,0,0,29965,11335,29974,29975,29972,29974,29978,29977,29979,29979,29979,29980,29979,29980,29980,29981,29981,29982,29982,29983,29985,29986,29986,29987,29987,29988,29988,29989,29989,29990,29990,29991]} 1. Nf3 {[%emt 0:00:01]} d5 {[%emt 0:00:01]} 2. e3 {[%emt 0:00:02]} Nf6 {[%emt 0:00:02]} 3. c4 {[%emt 0:00:04]} e6 {[%emt 0:00:02]} 4. b3 {[%emt 0:00:01]} c5 {[%emt 0:00:07]} 5. Bb2 {[%emt 0:00:03]} Nc6 {[%emt 0:00:02]} 6. cxd5 {[%emt 0:00:03]} exd5 {[%emt 0:00:02]} 7. Bb5 {[%emt 0:00:07]} Bd6 {[%emt 0:00:03]} 8. O-O {[%emt 0:00:16]} O-O {[%emt 0:00:04]} 9. d4 {[%emt 0:00:25]} cxd4 {[%emt 0:00:12]} 10. Bxc6 {[%emt 0:00:01]} bxc6 {[%emt 0:01:18]} 11. Qxd4 {[%emt 0:00:02]} Re8 {[%emt 0:00:08]} 12. Nbd2 {[%emt 0:00:05]} c5 {[%emt 0:01:16]} 13. Qh4 {[%emt 0:00:22]} Ne4 {[%emt 0:00:02]} 14. Qxd8 {[%emt 0:00:35]} Rxd8 {[%emt 0:00:01]} 15. Rfd1 {[%emt 0:00:09]} Ba6 {[%emt 0:00:53]} 16. Rac1 {[%emt 0:00:58]} Be2 {[%emt 0:06:45]} 17. Re1 {[%emt 0:00:17]} Bd3 {[%emt 0:00:02]} 18. Ba3 {[%emt 0:01:45]} Rac8 {[%emt 0:00:55]} 19. Nxe4 {[%emt 0:00:00]} Bxe4 {[%emt 0:00:23]} 20. Red1 {[%emt 0:00:07]} f6 {[%emt 0:00:16]} 21. Ne1 {[%emt 0:00:20]} Bf8 {[%emt 0:01:09]} 22. f3 {[%emt 0:01:03]} Bg6 {[%emt 0:00:04]} 23. Kf2 {[%emt 0:00:01]} a5 {[%emt 0:01:05]} 24. Rc3 {[%emt 0:00:48]} a4 {[%emt 0:00:21]} 25. bxa4 {[%emt 0:00:27]} c4 {[%emt 0:00:45]} 26. Bxf8 {[%emt 0:00:05]} Kxf8 {[%emt 0:00:02]} 27. Nc2 {[%emt 0:00:29]} Bxc2 {[%emt 0:00:21]} 28. Rxc2 {[%emt 0:00:01]} Rc5 {[%emt 0:00:10]} 29. Rd4 {[%emt 0:00:08]} Ra8 {[%emt 0:00:08]} ({Black should play} 29... Rb8 $1 $11) 30. e4 $14 {[%emt 0:00:10]} Rxa4 {[%emt 0:00:08]} (30... dxe4 31. Rcxc4 (31. Rdxc4 Rxc4 32. Rxc4 exf3 $16) 31... Rh5 32. Rxe4 $16 (32. fxe4 Rxh2 33. Rc5 Ra7 $16)) 31. exd5 {[%emt 0:01:31]} Ke7 {[%emt 0:00:03]} 32. d6+ $1 {[%emt 0:00:02]} Kd7 {[%emt 0:00:01]} 33. Kg3 {[%emt 0:00:30]} (33. Re2 $16 {And now Re7+ would win.} Re5 34. Rb2) 33... Rc6 $11 {[%emt 0:01:30]} 34. h4 {[%emt 0:00:05]} g6 {[%emt 0:00:25]} 35. Kh3 {[%emt 0:00:24]} h5 {[%emt 0:00:18]} (35... Ra3 {simplifies} 36. Rcxc4 Rxc4 37. Rxc4 Kxd6 38. h5 Rxa2 39. Rg4 Ke6) 36. Kg3 {[%emt 0:00:26]} (36. g4 {simplifies} Rxd6 37. Rdxc4 hxg4+ 38. Kxg4 Rd4+ 39. Rxd4+ Rxd4+ 40. f4) 36... Ra5 {[%emt 0:00:37]} (36... Ra3 {simplifies} 37. Rf4 Ke6 38. Rcxc4 Rxc4 39. Rxc4 Kxd6 40. Rd4+ Ke5) 37. Rf4 {[%emt 0:00:41]} (37. Rcxc4 Rxc4 38. Rxc4 Rxa2) (37. Rdxc4 {simplifies} Rxc4 38. Rxc4 Rxa2 39. Rc7+) 37... c3 {[%emt 0:00:24]} (37... Ke6 $11 {keeps the balance.}) 38. Rxf6 $16 {[%emt 0:00:14]} Rd5 {[%emt 0:00:01]} 39. Rf7+ {[%emt 0:01:46]} (39. Rxg6 Rd2 40. Rg7+ Kxd6 41. Rg6+ Kd5 42. Rxc6 Rxc2 $11) ({White must play} 39. Kf2 $1 $18) 39... Ke6 $1 $14 {[%emt 0:00:08]} 40. Rc7 {[%emt 0:00:30]} (40. Re7+ $1 $14 Kxd6 41. Re3) 40... Rxc7 $1 $11 {[%emt 0:00:15]} 41. dxc7 {[%emt 0:00:02]} Rc5 {[%emt 0:00:01]} 42. Kf4 {[%emt 0:00:01]} Kd5 $1 {[%emt 0:00:06]} 43. Kg5 {[%emt 0:00:47]} Rc6 {[%emt 0:00:16]} 44. c8=Q {[%emt 0:00:51]} Rxc8 {[%emt 0:00:01]} 45. Kxg6 {[%emt 0:00:01]} Kd4 {[%emt 0:00:26]} 46. Kxh5 {[%emt 0:00:10]} Kd3 {[%emt 0:00:00]} 47. Rc1 {[%emt 0:00:04]} c2 {[%emt 0:00:04]} 48. g4 {[%emt 0:01:03]} Kd2 {[%emt 0:00:42]} 49. Rxc2+ {[%emt 0:00:02]} Kxc2 $4 {[%emt 0:00:02][%mdl 8192]} (49... Rxc2 $11 50. g5 Ke3 (50... Rxa2 $2 51. g6 $18)) 50. g5 {[%emt 0:00:02]} Kd3 {[%emt 0:00:01] [#]} 51. g6 $1 {[%emt 0:00:00]} Ke3 {[%emt 0:00:05]} 52. g7 {[%emt 0:00:12]} Kxf3 {[%emt 0:00:41]} 53. Kg5 {[%emt 0:00:02]} Rc5+ {[%emt 0:00:15]} 54. Kg6 {[%emt 0:00:01]} Rc6+ {[%emt 0:00:04] [#]} 55. Kh7 $1 {[%emt 0:00:09]} Rc7 {[%emt 0:00:01]} 56. a4 {[%emt 0:00:36]} (56. Kh8 Rc4 $11) 56... Ra7 {[%emt 0:00:26]} 57. h5 {[%emt 0:01:14]} (57. Kh8 Rxa4 58. g8=Q (58. g8=B Ra7 $11) (58. h5 Rh4 $11) 58... Rxh4+ 59. Kg7 Rg4+ 60. Kh8 Rxg8+ 61. Kxg8 $11) 57... Kg4 {[%emt 0:00:45]} 58. Kh8 {[%emt 0:00:07]} Kxh5 {[%emt 0:00:10]} 59. g8=Q {[%emt 0:00:06]} ({Worse is} 59. g8=B Kh6 $11 (59... Rxa4 60. Kg7 $11)) 59... Kh6 {[%emt 0:00:03]} 60. Qf8+ {[%emt 0:00:01]} Kg6 {[%emt 0:00:01]} 61. Qd6+ {[%emt 0:00:02]} Kf7 {[%emt 0:00:03]} 62. Qf4+ {[%emt 0:00:03]} Kg6 {[%emt 0:00:02]} 63. Qg3+ {[%emt 0:00:01]} Kh5 {[%emt 0:00:03]} 64. Qh2+ {[%emt 0:00:01]} Kg6 {[%emt 0:00:01]} 65. Qg1+ {[%emt 0:00:00]} 1-0

[Event "Indian Rapid Championship 2023-24"]
[Site "Nashik"]
[Date "2024.03.05"]
[Round "5.1"]
[White "Ghosh, Diptayan"]
[Black "Hari Madhavan N B"]
[Result "1/2-1/2"]
[ECO "A05"]
[WhiteElo "2559"]
[BlackElo "2395"]
[Annotator "TA"]
[PlyCount "113"]
[EventDate "2024.03.02"]
[EventType "swiss"]
[EventCountry "IND"]
[SourceTitle "playchess.com"]
[Source "ChessBase"]
[SourceQuality "1"]
[TimeControl "900+10"]

{[%evp 14,113,40,31,33,25,64,28,30,18,37,14,55,35,38,43,36,35,39,23,27,14,58,19,30,21,15,10,36,36,41,41,43,45,64,46,86,87,81,87,78,70,86,78,86,85,81,77,103,79,118,118,130,107,161,173,242,181,162,0,250,241,265,133,133,15,134,61,61,44,126,138,122,18,20,20,20,0,0,0,0,0,0,0,0,0,0,0,0,0,0,0,0,0,0,0,0,0,0,0,0,-29989]} 1. Nf3 {[%emt 0:00:04]} Nf6 {[%emt 0:00:12]} 2. g3 {[%emt 0:00:03]} b5 {[%emt 0:00:13]} 3. Bg2 {[%emt 0:00:02]} Bb7 {[%emt 0:00:02]} 4. O-O {[%emt 0:00:05]} e6 {[%emt 0:00:04]} 5. b3 {[%emt 0:00:02]} Be7 {[%emt 0:00:03]} 6. c4 {[%emt 0:00:02]} a6 {[%emt 0:00:19] A05: Réti Opening: 1 Nf3 Nf6.} 7. Nc3 {[%emt 0:00:04]} b4 {[%emt 0:00:08]} 8. Na4 {[%emt 0:00:02]} O-O {[%emt 0:00:05]} 9. d4 {[%emt 0:00:08]} Bc6 $146 {[%emt 0:00:55]} ({Predecessor:} 9... d6 10. d5 exd5 11. Nh4 c5 12. Nf5 Re8 13. cxd5 Bf8 14. Re1 a5 15. e4 Nbd7 16. Nb2 Nb6 17. Bf4 Bc8 {½-½ Ding,L (2812)-Maghsoodloo,P (2673) WchT 12th Astana 2019 (5.13)}) 10. Nb2 {[%emt 0:01:36]} a5 {[%emt 0:00:20]} 11. Nd3 {[%emt 0:00:06]} Be4 {[%emt 0:01:32]} 12. Bb2 {[%emt 0:01:45]} Nc6 {[%emt 0:00:19]} 13. Nfe5 {[%emt 0:02:02]} Bxg2 {[%emt 0:00:33]} 14. Kxg2 {[%emt 0:00:02]} Nxe5 {[%emt 0:01:16]} 15. dxe5 {[%emt 0:00:28]} Ne4 {[%emt 0:01:09]} 16. Qc2 {[%emt 0:00:02]} Nc5 {[%emt 0:00:06]} 17. Rad1 {[%emt 0:00:27]} Qc8 {[%emt 0:00:13]} 18. Nxc5 {[%emt 0:02:15]} Bxc5 {[%emt 0:00:03]} 19. Qe4 {[%emt 0:00:03]} a4 {[%emt 0:03:31]} 20. Bd4 {[%emt 0:01:05]} Bxd4 {[%emt 0:01:37]} 21. Rxd4 {[%emt 0:00:03]} axb3 {[%emt 0:00:26]} 22. axb3 {[%emt 0:00:02]} c5 {[%emt 0:00:12]} 23. Rd6 {[%emt 0:01:18]} Ra7 {[%emt 0:00:05]} 24. Rfd1 {[%emt 0:00:05]} f5 {[%emt 0:00:21]} 25. exf6 {[%emt 0:01:58]} Rxf6 {[%emt 0:00:03]} 26. R1d3 {[%emt 0:00:43]} Rf7 {[%emt 0:00:15]} 27. f3 {[%emt 0:00:12]} Qc7 {[%emt 0:00:27]} 28. Rd2 {[%emt 0:00:29]} Qc8 {[%emt 0:00:11]} 29. h4 {[%emt 0:00:05]} Qb7 {[%emt 0:00:40]} 30. Qe3 {[%emt 0:00:46]} Qc8 {[%emt 0:00:16]} 31. Qg5 {[%emt 0:00:41]} h6 {[%emt 0:00:13]} 32. Qe3 {[%emt 0:00:06]} Rc7 {[%emt 0:00:38]} 33. g4 {[%emt 0:00:19]} Qe8 {[%emt 0:00:09]} (33... Rc6 $16) 34. Qe5 $18 {[%emt 0:00:06]} Qc8 {[%emt 0:00:51]} (34... g6 $142 35. Ra6 Rc8) 35. Rb6 {[%emt 0:00:26]} Rf8 {[%emt 0:01:19]} 36. Rbd6 {[%emt 0:00:32]} (36. Rd1 $142) 36... Rf7 $1 $18 {[%emt 0:00:12]} 37. Ra2 $1 {[%emt 0:00:05]} Qb8 {[%emt 0:01:20] [#]} 38. Rda6 {[%emt 0:00:18]} ({White has to play} 38. Ra5 $1 $18) 38... Rc8 $16 {[%emt 0:00:09]} 39. Qe4 {[%emt 0:00:45]} ({Better is} 39. Qe3 $16) 39... Qf4 {[%emt 0:00:28] [#]} (39... Rf4 $11 {remains equal.} 40. Qe3 Rd4) 40. Ra8 {[%emt 0:00:04]} (40. Qxf4 $1 $16 {Threatening mate with Qd6.} Rxf4 41. Rd2) 40... Rcf8 $1 $14 {[%emt 0:00:01]} 41. Rxf8+ {[%emt 0:01:23]} Rxf8 {[%emt 0:00:02]} (41... Kxf8 $14 42. Qxf4 Rxf4) 42. Qxf4 $16 {[%emt 0:00:07]} Rxf4 {[%emt 0:00:01]} 43. e4 {[%emt 0:00:01]} (43. Rd2 $16 Rf7 44. h5) 43... d5 $11 {[%emt 0:00:37]} 44. Kg3 {[%emt 0:00:12]} g5 {[%emt 0:00:01]} 45. hxg5 {[%emt 0:00:02]} hxg5 {[%emt 0:00:01]} 46. exd5 {[%emt 0:00:18]} exd5 {[%emt 0:00:02]} 47. cxd5 {[%emt 0:01:04]} Rd4 {[%emt 0:00:01]} 48. Ra7 {[%emt 0:00:21]} Rxd5 {[%emt 0:00:09]} 49. Rc7 {[%emt 0:00:01]} Kf8 {[%emt 0:00:09]} 50. Kf2 {[%emt 0:00:02]} Re5 {[%emt 0:00:25]} 51. f4 {[%emt 0:00:16]} gxf4 {[%emt 0:00:04]} 52. Kf3 {[%emt 0:00:01]} Re3+ {[%emt 0:00:17]} 53. Kxf4 {[%emt 0:00:01]} Rxb3 {[%emt 0:00:02]} 54. Rxc5 {[%emt 0:00:01]} Rc3 {[%emt 0:00:04]} 55. Rxc3 {[%emt 0:00:08]} bxc3 {[%emt 0:00:02]} 56. Ke3 {[%emt 0:00:01]} Kg7 {[%emt 0:00:01]} (56... c2 $5 57. Kd2 $8 c1=R 58. Kxc1 Kg8 $11) 57. Ke4 $2 {[%emt 0:00:04][%mdl 8192]} (57. Kd3 $11) 1/2-1/2

[Event "Indian Rapid Championship 2023-24"]
[Site "Nashik"]
[Date "2024.03.05"]
[Round "5.2"]
[White "Mohammad Nubairshah Shaikh"]
[Black "Aronyak Ghosh"]
[Result "0-1"]
[ECO "A30"]
[WhiteElo "2436"]
[BlackElo "2517"]
[Annotator "TA"]
[PlyCount "88"]
[EventDate "2024.03.02"]
[EventType "swiss"]
[EventCountry "IND"]
[SourceTitle "playchess.com"]
[Source "ChessBase"]
[SourceQuality "1"]
[TimeControl "900+10"]

{[%evp 14,88,-8,-10,-25,-40,-34,-50,-41,-43,-44,-62,-81,-114,-82,-79,9,0,5,-55,-21,-27,-23,-33,-9,-8,-6,-60,-76,-92,-89,-95,-106,-108,-99,-95,-93,-104,-129,-120,-91,-90,-89,-90,-51,-103,-111,-103,-103,-317,-299,-805,-717,-837,-801,-1001,-1004,-865,-1188,-1579,-1606,-29964,-29965,-29966,-29968,-29970,-29971,-29971,-29972,-29972,-29973,-29973,-29974,-29991,-29992,-29992,-29993]} 1. Nf3 {[%emt 0:00:02]} Nf6 {[%emt 0:00:16]} 2. c4 {[%emt 0:00:05]} c5 {[%emt 0:00:18]} 3. g3 {[%emt 0:00:07]} Nc6 {[%emt 0:00:16]} 4. Bg2 {[%emt 0:00:02]} d5 {[%emt 0:00:01]} 5. O-O {[%emt 0:00:02]} e5 {[%emt 0:01:15]} 6. cxd5 {[%emt 0:00:03]} Nxd5 {[%emt 0:00:03]} 7. Nc3 {[%emt 0:00:01]} Be6 {[%emt 0:00:12]} 8. Ng5 {[%emt 0:00:29]} Qxg5 {[%emt 0:00:26]} 9. Nxd5 {[%emt 0:00:01]} Qd8 {[%emt 0:00:07] Dodges Nc7+} 10. Nc3 {[%emt 0:01:42]} Qd7 {[%emt 0:00:30] Black is slightly better.} 11. Qa4 {[%emt 0:03:08]} Rc8 {[%emt 0:00:51]} 12. f4 {[%emt 0:00:01]} exf4 {[%emt 0:01:01]} 13. gxf4 {[%emt 0:00:03]} f5 {[%emt 0:00:54]} 14. d3 {[%emt 0:00:39]} Qd4+ {[%emt 0:00:54]} ({Black should try} 14... Be7 $17) 15. Qxd4 $11 {[%emt 0:00:10]} cxd4 {[%emt 0:00:06]} 16. Nd5 {[%emt 0:00:36]} (16. Nb5 $11) 16... Kd7 {[%emt 0:01:03]} 17. Bd2 {[%emt 0:00:10]} Bd6 {[%emt 0:00:46]} 18. Rfc1 {[%emt 0:05:23]} Rhe8 {[%emt 0:00:50] White should prevent ...Bxd5.} 19. Kf2 {[%emt 0:00:04]} b6 {[%emt 0:00:29]} 20. a3 {[%emt 0:00:28]} ({Better is} 20. Bf3 $11) 20... Na5 $15 {[%emt 0:00:52]} 21. Bxa5 {[%emt 0:00:53]} bxa5 {[%emt 0:00:05]} 22. b4 {[%emt 0:00:01]} Rxc1 {[%emt 0:01:07]} 23. Rxc1 {[%emt 0:00:01]} Rc8 {[%emt 0:00:01]} 24. Rxc8 {[%emt 0:00:33]} Kxc8 $17 {[%emt 0:00:02][%mdl 4096] Endgame. KBB-KBN} 25. e3 {[%emt 0:00:01]} axb4 {[%emt 0:00:30]} 26. axb4 {[%emt 0:00:02]} Kd7 {[%emt 0:00:43]} 27. exd4 {[%emt 0:00:28]} Bxd5 {[%emt 0:00:35]} 28. Bxd5 {[%emt 0:00:02]} Bxf4 {[%emt 0:00:11] KB-KB} 29. h3 {[%emt 0:00:40]} (29. h4 $1 $15) 29... Ke7 {[%emt 0:00:06]} 30. Bg8 {[%emt 0:00:14]} h6 {[%emt 0:00:27] And now ...Bd6 would win.} 31. Kf3 $2 {[%emt 0:00:19] [#] This costs White the game.} (31. d5 $17 {only move.}) 31... Bd6 $19 {[%emt 0:00:04]} 32. b5 $2 {[%emt 0:00:00]} (32. Ke2) 32... Kf6 {[%emt 0:00:14]} 33. Bd5 {[%emt 0:00:15]} g5 {[%emt 0:00:14]} 34. Bc6 {[%emt 0:01:32]} h5 {[%emt 0:00:06]} 35. Bd7 {[%emt 0:00:02]} g4+ {[%emt 0:00:16]} 36. Kg2 {[%emt 0:01:56]} Kg5 {[%emt 0:00:05]} 37. h4+ {[%emt 0:00:01]} Kxh4 {[%emt 0:00:28] Black mates.} 38. Bxf5 {[%emt 0:00:01]} Kg5 {[%emt 0:00:02]} 39. Be4 {[%emt 0:00:18]} h4 {[%emt 0:00:04]} 40. Kf2 {[%emt 0:00:15]} h3 {[%emt 0:00:15]} 41. Bc6 {[%emt 0:00:04]} Bc7 {[%emt 0:00:22]} 42. Ke3 {[%emt 0:00:21]} g3 {[%emt 0:00:14]} 43. Bd7 {[%emt 0:00:22]} g2 {[%emt 0:00:10]} 44. Kf2 {[%emt 0:00:01]} Bh2 {[%emt 0:00:03] Weighted Error Value: White=0.55/Black=0.11 (very precise) .  Loses game:     	White=1     	---        Mistake:       	White=4     	Black=1      Inaccurate:     	White=1     	Black=2      OK:         	White=6     	Black=10     Best:        	White=2     	Black=1} 0-1

[Event "Indian Rapid Championship 2023-24"]
[Site "Nashik"]
[Date "2024.03.05"]
[Round "5.3"]
[White "Ravi, Teja S."]
[Black "Raja Rithvik R"]
[Result "1/2-1/2"]
[ECO "D02"]
[WhiteElo "2437"]
[BlackElo "2532"]
[Annotator "TA"]
[PlyCount "92"]
[EventDate "2024.03.02"]
[EventType "swiss"]
[EventCountry "IND"]
[SourceTitle "playchess.com"]
[Source "ChessBase"]
[SourceQuality "1"]
[TimeControl "900+10"]

{[%evp 10,92,0,0,0,0,0,0,0,-8,10,0,0,8,7,0,6,0,17,-11,0,0,0,0,2,0,30,23,19,17,38,33,32,43,33,39,78,87,73,43,87,88,100,114,96,111,112,112,98,101,95,104,93,105,131,133,145,135,134,141,136,63,63,64,83,12,179,179,179,72,72,72,79,88,79,0,88,0,100,12,93,88,98,89,87]} 1. d4 {[%emt 0:00:01]} Nf6 {[%emt 0:01:26]} 2. Nf3 {[%emt 0:00:04]} d5 {[%emt 0:00:02]} 3. Bf4 {[%emt 0:00:05]} c5 {[%emt 0:00:01]} 4. e3 {[%emt 0:00:03]} Nc6 {[%emt 0:00:02]} 5. c3 {[%emt 0:00:18]} Qb6 {[%emt 0:00:04]} 6. Qc2 {[%emt 0:00:02]} g6 {[%emt 0:00:09]} 7. Nbd2 {[%emt 0:00:02]} Bg7 {[%emt 0:00:44]} 8. Be2 {[%emt 0:00:12]} O-O {[%emt 0:00:50] The position is equal.} 9. O-O {[%emt 0:00:17]} Bf5 {[%emt 0:00:23]} 10. Qb3 {[%emt 0:01:14]} c4 {[%emt 0:00:41]} 11. Qxb6 {[%emt 0:00:03]} axb6 {[%emt 0:00:01]} 12. Ne5 {[%emt 0:00:10]} b5 {[%emt 0:00:19]} 13. a3 {[%emt 0:00:17]} Rfd8 {[%emt 0:02:38]} 14. Rfe1 {[%emt 0:00:38]} Ne8 {[%emt 0:02:30]} 15. g4 {[%emt 0:05:56] [#] aiming for Nxc6.} Bc8 {[%emt 0:02:28]} 16. g5 {[%emt 0:02:10]} Nxe5 {[%emt 0:02:01]} 17. Bxe5 {[%emt 0:00:02]} Bf5 {[%emt 0:02:02]} 18. Bxg7 {[%emt 0:00:28]} Kxg7 {[%emt 0:00:01]} 19. Bf3 {[%emt 0:00:23]} e6 {[%emt 0:00:12]} 20. e4 {[%emt 0:00:25]} dxe4 {[%emt 0:00:01]} 21. Nxe4 {[%emt 0:00:03]} Bxe4 {[%emt 0:00:07]} 22. Rxe4 {[%emt 0:00:05]} Nd6 {[%emt 0:01:37]} 23. Re5 {[%emt 0:00:59]} h6 {[%emt 0:00:01]} 24. gxh6+ {[%emt 0:00:43]} Kxh6 {[%emt 0:00:01]} 25. d5 {[%emt 0:00:31] White is more active.} Re8 {[%emt 0:00:37]} 26. dxe6 {[%emt 0:00:07]} Rxe6 {[%emt 0:00:13]} 27. Rxe6 {[%emt 0:00:19]} fxe6 $16 {[%emt 0:00:01][%mdl 4096] Endgame. KRB-KRN} 28. Re1 {[%emt 0:00:06]} Re8 {[%emt 0:00:38]} 29. Re5 {[%emt 0:00:15]} Kg7 {[%emt 0:00:00]} 30. Bg4 {[%emt 0:00:01]} Kf6 {[%emt 0:00:00]} 31. f4 {[%emt 0:00:02]} b6 {[%emt 0:00:10]} 32. Kg2 {[%emt 0:00:04]} Re7 {[%emt 0:00:10]} 33. Kf3 {[%emt 0:00:30]} Re8 {[%emt 0:00:03]} 34. h4 {[%emt 0:00:05]} Re7 {[%emt 0:00:03]} 35. h5 {[%emt 0:00:13]} (35. Ke2 $16) 35... gxh5 $14 {[%emt 0:00:04]} 36. Rxh5 {[%emt 0:00:01]} Kg7 {[%emt 0:00:34]} 37. Ke3 {[%emt 0:00:52]} (37. Rg5+ $16 Kf6 38. Rh5) 37... Re8 $2 {[%emt 0:00:10] [#]} (37... Nf5+ $11 38. Kd2 Rd7+ 39. Kc1 Rf7) 38. Re5 $18 {[%emt 0:01:10]} Kf6 {[%emt 0:00:06]} 39. Ke2 {[%emt 0:00:24]} (39. Kd4 $18 {is the precise move to win.}) 39... Re7 $16 {[%emt 0:00:10]} 40. Kd2 {[%emt 0:00:21]} Re8 {[%emt 0:00:11]} 41. Kc2 {[%emt 0:00:02]} Re7 {[%emt 0:00:08]} 42. Kd2 {[%emt 0:00:35]} Re8 {[%emt 0:00:01]} 43. Ke2 {[%emt 0:00:02]} Re7 {[%emt 0:00:01]} 44. Rh5 {[%emt 0:00:12]} (44. Ke1 $16) 44... Kg7 {[%emt 0:00:10]} (44... Nf5 $11 45. Ke1 Ne3) 45. Rg5+ {[%emt 0:00:02]} Kf6 {[%emt 0:00:07]} 46. Re5 {[%emt 0:00:35]} Re8 {[%emt 0:00:05] Weighted Error Value: White=0.19 (very precise) /Black=0.17 (very precise) .  Loses game:     	---       	Black=1      Mistake:       	White=4     	Black=1      Inaccurate:     	White=2     	Black=3      OK:         	White=11    	Black=11     Best:        	White=3     	Black=7} 1/2-1/2

[Event "Indian Rapid Championship 2023-24"]
[Site "Nashik"]
[Date "2024.03.05"]
[Round "5.4"]
[White "Prraneeth Vuppala"]
[Black "Ratnakaran, K.."]
[Result "1-0"]
[ECO "B00"]
[WhiteElo "2506"]
[BlackElo "2258"]
[Annotator "TA"]
[PlyCount "67"]
[EventDate "2024.03.02"]
[EventType "swiss"]
[EventCountry "IND"]
[SourceTitle "playchess.com"]
[Source "ChessBase"]
[SourceQuality "1"]
[TimeControl "900+10"]

{[%evp 9,67,62,73,45,39,5,22,26,43,0,0,7,18,-19,52,0,61,62,89,64,74,68,84,75,78,54,56,0,0,0,0,0,0,-43,0,-30,0,0,205,195,285,226,267,209,211,242,275,235,228,127,163,45,29979,29980,29995,29996,29996,29997,29997,29998]} 1. e4 {[%emt 0:02:01]} e6 {[%emt 0:00:01]} 2. d4 {[%emt 0:00:02]} b6 {[%emt 0:00:02]} 3. Bd3 {[%emt 0:00:12]} Bb7 {[%emt 0:00:01]} 4. Qe2 {[%emt 0:00:11]} d6 {[%emt 0:00:02]} 5. Nf3 {[%emt 0:00:14]} a6 {[%emt 0:00:02]} 6. Bg5 {[%emt 0:00:09]} Be7 {[%emt 0:00:03]} 7. h4 {[%emt 0:00:12]} Nd7 {[%emt 0:00:03]} 8. Nbd2 {[%emt 0:00:05][%cal Bb1d2,Bd2b3,Bb3c5][%mdl 32] The position is equal.} h6 {[%emt 0:00:12]} 9. Bxe7 {[%emt 0:00:10]} Nxe7 {[%emt 0:00:03]} 10. O-O-O {[%emt 0:01:15]} b5 {[%emt 0:00:02][%cal Bb6b5,Bb5b4][%mdl 32]} 11. e5 {[%emt 0:00:28]} d5 {[%emt 0:00:06]} (11... Nd5 $11) 12. Nb3 $14 {[%emt 0:00:49]} c6 {[%emt 0:00:02]} (12... b4 $1 $11) 13. Nc5 {[%emt 0:00:25]} Bc8 {[%emt 0:00:32]} 14. g4 {[%emt 0:00:17]} b4 {[%emt 0:00:18]} 15. Kb1 {[%emt 0:00:48] White is much more active. The black rooks are passive.} (15. Nxa6 $2 {perishes.} Bxa6 16. Bxa6 Qa5 $19) 15... a5 {[%emt 0:00:02][%cal Ba6a5,Ba5a4][%mdl 32]} 16. g5 {[%emt 0:00:21][%cal Og5g6]} Nxc5 {[%emt 0:00:12]} 17. dxc5 {[%emt 0:00:17]} a4 $1 {[%emt 0:00:01]} 18. gxh6 {[%emt 0:01:02]} (18. Rhg1 $14) 18... gxh6 $11 {[%emt 0:00:02]} 19. h5 {[%emt 0:02:04]} Qa5 {[%emt 0:00:02]} 20. Qe3 $36 {[%emt 0:00:03][%mdl 2048] Black is under pressure.} Ba6 {[%emt 0:01:10]} 21. Nh4 {[%emt 0:00:54]} Bxd3 {[%emt 0:00:00]} (21... a3 $5 22. Bxa6 axb2 $17) 22. Rxd3 {[%emt 0:00:35]} Rb8 {[%emt 0:00:00]} 23. f4 {[%emt 0:00:30][%cal Of4f5]} Rb5 $2 {[%emt 0:00:00] [#]} (23... Rg8 $11 {and Black is okay.}) 24. f5 $1 $18 {[%emt 0:00:02][%mdl 512]} Rxc5 {[%emt 0:00:00]} (24... b3 $142) (24... Qa7 25. f6) 25. fxe6 {[%emt 0:00:37]} fxe6 {[%emt 0:00:00]} 26. Ng6 {[%emt 0:00:07]} Nf5 {[%emt 0:00:00]} 27. Qh3 {[%emt 0:00:23]} Rg8 {[%emt 0:00:41]} 28. Nh4 {[%emt 0:00:46]} Rg5 {[%emt 0:03:13] [#]} 29. Nxf5 $1 {[%emt 0:00:04]} Rxf5 {[%emt 0:00:09]} 30. Qg4 {[%emt 0:00:54]} (30. Rg3 $18 b3 31. axb3 (31. cxb3 axb3 32. Rxb3 Rb5 $11) 31... axb3 32. Rxb3) 30... Qb5 $2 {[%emt 0:01:41][%mdl 8192] Black cannot hold the game after this.} (30... Rc4 $14 31. Qg6+ Ke7 (31... Kd7 32. Rg3 $16)) 31. Qg8+ {[%emt 0:00:22] White mates.} Ke7 {[%emt 0:00:01]} 32. Rg1 {[%emt 0:00:11]} Rg5 {[%emt 0:00:14]} 33. Rxg5 {[%emt 0:00:11]} hxg5 {[%emt 0:00:01]} 34. Rf3 {[%emt 0:00:11] Weighted Error Value: White=0.18 (very precise) /Black=0.54.  Loses game:     	---       	Black=2      Mistake:       	White=2     	Black=3      Inaccurate:     	White=5     	Black=2      OK:         	White=6     	Black=6      Best:        	White=2     	Black=2      Strong:       	White=1     	Black=1      Brilliant:      	White=1     	---} 1-0